[Event "Senior Men Russian Championship 2022_1L"]
[Site "Olginka, Russia"]
[Date "2022.09.26"]
[Round "3.1"]
[White "Rodin, Mihail"]
[Black "Chudinovskikh, Alexander M"]
[Result "1-0"]
[TimeControl "90min/40moves+30min/end+30sec increment per move starting from move 1"]
[BlackTitle "IM"]
[WhiteFideId "4113160"]
[BlackFideId "4106083"]
[WhiteElo "2320"]
[BlackElo "2074"]

1. e4 {[%clk 01:30:40]} {[%emt 00:00:19]} e5 {[%clk 01:30:52]} {[%emt
00:00:10]} 2. Nf3 {[%clk 01:31:05]} {[%emt 00:00:03]} d6 {[%clk 01:31:18]}
{[%emt 00:00:06]} 3. d4 {[%clk 01:31:28]} {[%emt 00:00:06]} exd4 {[%clk
01:31:43]} {[%emt 00:00:04]} 4. Nxd4 {[%clk 01:31:56]} {[%emt 00:00:02]} Nf6
{[%clk 01:32:06]} {[%emt 00:00:07]} 5. Nc3 {[%clk 01:32:17]} {[%emt 00:00:09]}
Be7 {[%clk 01:32:33]} {[%emt 00:00:04]} 6. g3 {[%clk 01:32:36]} {[%emt
00:00:11]} Nc6 {[%clk 01:32:51]} {[%emt 00:00:12]} 7. Bg2 {[%clk 01:32:52]}
{[%emt 00:00:13]} Bg4 {[%clk 01:33:16]} {[%emt 00:00:06]} 8. Nxc6 {[%clk
01:31:01]} {[%emt 00:02:20]} bxc6 {[%clk 01:33:26]} {[%emt 00:00:21]} 9. Qd3
{[%clk 01:31:23]} {[%emt 00:00:07]} O-O {[%clk 01:33:15]} {[%emt 00:00:42]} 10.
h3 {[%clk 01:29:55]} {[%emt 00:01:58]} Be6 {[%clk 01:32:37]} {[%emt 00:01:08]}
11. O-O {[%clk 01:30:07]} {[%emt 00:00:18]} Nd7 {[%clk 01:32:38]} {[%emt
00:00:30]} 12. f4 {[%clk 01:30:24]} {[%emt 00:00:12]} Nc5 {[%clk 01:32:11]}
{[%emt 00:00:58]} 13. Qe2 {[%clk 01:17:16]} {[%emt 00:13:37]} Rb8 {[%clk
01:27:43]} {[%emt 00:04:59]} 14. b3 {[%clk 01:15:55]} {[%emt 00:01:51]} Bf6
{[%clk 01:24:42]} {[%emt 00:03:31]} 15. Bb2 {[%clk 01:16:08]} {[%emt 00:00:17]}
g6 {[%clk 01:15:48]} {[%emt 00:09:24]} 16. Rad1 {[%clk 01:14:33]} {[%emt
00:02:04]} Re8 {[%clk 01:15:58]} {[%emt 00:00:21]} 17. Qf2 {[%clk 01:13:24]}
{[%emt 00:01:38]} Bg7 {[%clk 01:04:20]} {[%emt 00:12:09]} 18. e5 {[%clk
00:59:19]} {[%emt 00:14:34]} Rb6 {[%clk 00:59:24]} {[%emt 00:05:27]} 19. Ba3
{[%clk 00:55:15]} {[%emt 00:04:33]} Qc8 {[%clk 00:52:50]} {[%emt 00:07:05]} 20.
Bxc5 {[%clk 00:46:34]} {[%emt 00:09:11]} dxc5 {[%clk 00:52:50]} {[%emt
00:00:31]} 21. Na4 {[%clk 00:44:39]} {[%emt 00:02:25]} Ra6 {[%clk 00:48:32]}
{[%emt 00:04:49]} 22. Nxc5 {[%clk 00:43:27]} {[%emt 00:01:41]} Rxa2 {[%clk
00:48:53]} {[%emt 00:00:10]} 23. Bxc6 {[%clk 00:43:36]} {[%emt 00:00:20]} Rf8
{[%clk 00:47:08]} {[%emt 00:02:15]} 24. g4 {[%clk 00:43:29]} {[%emt 00:00:36]}
Qb8 {[%clk 00:46:07]} {[%emt 00:01:32]} 25. Bd7 {[%clk 00:34:24]} {[%emt
00:09:35]} Qb6 {[%clk 00:40:55]} {[%emt 00:05:42]} 26. Nxe6 {[%clk 00:34:26]}
{[%emt 00:00:28]} fxe6 {[%clk 00:41:05]} {[%emt 00:00:21]} 27. Qxb6 {[%clk
00:34:43]} {[%emt 00:00:13]} axb6 {[%clk 00:40:31]} {[%emt 00:01:04]} 28. Bxe6+
{[%clk 00:35:06]} {[%emt 00:00:06]} Kh8 {[%clk 00:40:58]} {[%emt 00:00:03]} 29.
Rd2 {[%clk 00:32:34]} {[%emt 00:03:01]} g5 {[%clk 00:41:04]} {[%emt 00:00:25]}
30. fxg5 {[%clk 00:32:54]} {[%emt 00:00:09]} Rxf1+ {[%clk 00:41:25]} {[%emt
00:00:11]} 31. Kxf1 {[%clk 00:33:17]} {[%emt 00:00:06]} Bxe5 {[%clk 00:41:41]}
{[%emt 00:00:14]} 32. Bf5 {[%clk 00:33:39]} {[%emt 00:00:07]} Bd6 {[%clk
00:40:36]} {[%emt 00:01:36]} 33. Re2 {[%clk 00:33:53]} {[%emt 00:00:16]} Ra1+
{[%clk 00:35:24]} {[%emt 00:05:43]} 34. Kg2 {[%clk 00:34:04]} {[%emt 00:00:18]}
Kg7 {[%clk 00:34:23]} {[%emt 00:01:31]} 35. Re6 {[%clk 00:34:17]} {[%emt
00:00:16]} Rd1 {[%clk 00:34:37]} {[%emt 00:00:16]} 36. Rh6 {[%clk 00:34:19]}
{[%emt 00:00:28]} Bf4 {[%clk 00:34:04]} {[%emt 00:01:04]} 37. Rxh7+ {[%clk
00:34:38]} {[%emt 00:00:10]} Kg8 {[%clk 00:34:31]} {[%emt 00:00:04]} 38. g6
{[%emt 00:01:00]} 1-0

[Event "Senior Men Russian Championship 2022_1L"]
[Site "Olginka, Russia"]
[Date "2022.09.26"]
[Round "3.2"]
[White "Kurdakov, Yuri"]
[Black "Dmitriev, Igor"]
[Result "1/2-1/2"]
[TimeControl "90min/40moves+30min/end+30sec increment per move starting from move 1"]
[WhiteTitle "FM"]
[BlackTitle "IM"]
[WhiteFideId "4120493"]
[BlackFideId "4114833"]
[WhiteElo "2085"]
[BlackElo "2174"]

1. Nf3 {[%clk 01:30:55]} {[%emt 00:00:04]} e6 {[%clk 01:24:55]} {[%emt
00:06:06]} 2. c4 {[%clk 01:30:02]} {[%emt 00:01:23]} b6 {[%clk 01:24:43]}
{[%emt 00:00:42]} 3. g3 {[%clk 01:29:51]} {[%emt 00:00:40]} Bb7 {[%clk
01:24:59]} {[%emt 00:00:14]} 4. Bg2 {[%clk 01:30:05]} {[%emt 00:00:15]} Nf6
{[%clk 01:23:51]} {[%emt 00:01:39]} 5. O-O {[%clk 01:30:06]} {[%emt 00:00:30]}
Be7 {[%clk 01:22:38]} {[%emt 00:01:43]} 6. Nc3 {[%clk 01:23:54]} {[%emt
00:06:41]} O-O {[%clk 01:21:53]} {[%emt 00:01:14]} 7. d4 {[%clk 01:17:49]}
{[%emt 00:06:36]} Ne4 {[%clk 01:18:53]} {[%emt 00:03:30]} 8. Nxe4 {[%clk
01:17:58]} {[%emt 00:00:20]} Bxe4 {[%clk 01:19:16]} {[%emt 00:00:07]} 9. d5
{[%clk 01:11:21]} {[%emt 00:07:08]} Na6 {[%clk 01:17:35]} {[%emt 00:02:11]} 10.
Nd4 {[%clk 01:09:51]} {[%emt 00:02:00]} Bxg2 {[%clk 01:14:47]} {[%emt
00:03:17]} 11. Kxg2 {[%clk 01:10:16]} {[%emt 00:00:05]} Nc5 {[%clk 01:13:05]}
{[%emt 00:02:12]} 12. Nb3 {[%clk 01:08:48]} {[%emt 00:01:58]} Bf6 {[%clk
01:12:45]} {[%emt 00:00:49]} 13. Rb1 {[%clk 01:04:41]} {[%emt 00:04:38]} Qe7
{[%clk 01:10:16]} {[%emt 00:02:58]} 14. Re1 {[%clk 01:00:33]} {[%emt 00:04:38]}
Rfe8 {[%clk 00:52:42]} {[%emt 00:18:05]} 15. f3 {[%clk 00:47:48]} {[%emt
00:13:15]} exd5 {[%clk 00:45:01]} {[%emt 00:08:10]} 16. cxd5 {[%clk 00:46:56]}
{[%emt 00:01:22]} Nxb3 {[%clk 00:40:38]} {[%emt 00:04:53]} 17. Qxb3 {[%clk
00:46:41]} {[%emt 00:00:45]} c5 {[%clk 00:40:48]} {[%emt 00:00:20]} 18. e4
{[%clk 00:44:53]} {[%emt 00:02:18]} d6 {[%clk 00:41:10]} {[%emt 00:00:08]} 19.
Qd3 {[%clk 00:43:18]} {[%emt 00:02:05]} Qd7 {[%clk 00:40:29]} {[%emt 00:01:11]}
20. Bd2 {[%clk 00:36:02]} {[%emt 00:07:46]} Qa4 {[%clk 00:37:13]} {[%emt
00:03:45]} 21. Bc3 {[%clk 00:24:51]} {[%emt 00:11:41]} Bxc3 {[%clk 00:37:06]}
{[%emt 00:00:36]} 22. Qxc3 {[%clk 00:25:14]} {[%emt 00:00:08]} f6 {[%clk
00:37:25]} {[%emt 00:00:11]} 23. a3 {[%clk 00:21:06]} {[%emt 00:04:39]} Re7
{[%clk 00:37:31]} {[%emt 00:00:23]} 24. Re2 {[%clk 00:17:22]} {[%emt 00:04:14]}
Rae8 {[%clk 00:37:39]} {[%emt 00:00:22]} 25. Rbe1 {[%clk 00:17:44]} {[%emt
00:00:08]} a5 {[%clk 00:37:05]} {[%emt 00:01:03]} 26. Qd3 {[%clk 00:17:26]}
{[%emt 00:00:49]} Qd7 {[%clk 00:32:27]} {[%emt 00:05:07]} 27. b4 {[%clk
00:12:49]} {[%emt 00:05:09]} axb4 {[%clk 00:32:32]} {[%emt 00:00:25]} 28. axb4
{[%clk 00:13:18]} {[%emt 00:00:01]} h6 {[%clk 00:29:06]} {[%emt 00:03:55]} 29.
Qb3 {[%clk 00:12:15]} {[%emt 00:01:34]} Qb5 {[%clk 00:28:27]} {[%emt 00:01:08]}
30. Rb2 {[%clk 00:12:00]} {[%emt 00:00:46]} f5 {[%clk 00:26:51]} {[%emt
00:02:05]} 31. bxc5 {[%clk 00:12:19]} {[%emt 00:00:13]} Qxb3 {[%clk 00:27:13]}
{[%emt 00:00:07]} 32. Rxb3 {[%clk 00:12:49]} bxc5 {[%clk 00:27:27]} {[%emt
00:00:16]} 33. Rb6 {[%clk 00:12:25]} {[%emt 00:00:54]} Rd7 {[%clk 00:26:18]}
{[%emt 00:01:39]} 34. Kf2 {[%clk 00:07:52]} {[%emt 00:05:03]} Kf7 {[%clk
00:25:42]} {[%emt 00:01:06]} 35. Rc6 {[%clk 00:05:15]} {[%emt 00:03:08]} Kf6
{[%clk 00:25:28]} {[%emt 00:00:43]} 36. Rc1 {[%clk 00:02:56]} {[%emt 00:02:49]}
fxe4 {[%clk 00:20:10]} {[%emt 00:05:48]} 37. R1xc5 {[%clk 00:03:20]} {[%emt
00:00:07]} exf3 {[%clk 00:18:54]} {[%emt 00:01:45]} 38. Kxf3 {[%clk 00:02:32]}
{[%emt 00:01:18]} Ke5 {[%clk 00:18:06]} {[%emt 00:01:17]} 39. Ra5 {[%clk
00:02:44]} {[%emt 00:00:20]} Kd4 {[%clk 00:17:42]} {[%emt 00:00:53]} 40. Rc2
{[%clk 00:32:49]} {[%emt 00:00:26]} Rf7+ {[%clk 00:43:12]} {[%emt 00:05:00]} 41.
Kg2 {[%clk 00:32:56]} {[%emt 00:00:23]} g5 {[%clk 00:42:40]} {[%emt 00:01:01]}
42. Ra1 {[%clk 00:31:04]} {[%emt 00:02:23]} Re3 {[%clk 00:41:25]} {[%emt
00:01:44]} 43. Rd2+ {[%clk 00:30:23]} {[%emt 00:01:13]} Ke5 {[%clk 00:41:37]}
{[%emt 00:00:18]} 44. Ra8 {[%clk 00:30:36]} {[%emt 00:00:17]} Kf6 {[%clk
00:28:34]} {[%emt 00:13:32]} 45. Rd8 {[%clk 00:25:45]} {[%emt 00:05:21]} Ke7
{[%clk 00:28:12]} {[%emt 00:00:52]} 46. Rh8 {[%clk 00:26:00]} {[%emt 00:00:16]}
Rf6 {[%clk 00:27:16]} {[%emt 00:01:25]} 47. Rf2 {[%clk 00:12:02]} {[%emt
00:14:28]} Rxf2+ {[%clk 00:26:21]} {[%emt 00:01:25]} 48. Kxf2 {[%clk 00:12:28]}
{[%emt 00:00:04]} Re5 {[%clk 00:26:42]} {[%emt 00:00:09]} 49. Rxh6 {[%clk
00:12:53]} {[%emt 00:00:05]} Rxd5 {[%clk 00:27:05]} {[%emt 00:00:07]} 50. Kf3
{[%clk 00:13:21]} {[%emt 00:00:02]} Re5 {[%clk 00:25:12]} {[%emt 00:02:23]} 51.
h4 {[%clk 00:12:16]} {[%emt 00:01:34]} gxh4 {[%clk 00:25:35]} {[%emt 00:00:08]}
52. Rxh4 {[%clk 00:12:31]} {[%emt 00:00:15]} Re4 53. Kxe4 1/2-1/2

[Event "Senior Men Russian Championship 2022_1L"]
[Site "Olginka, Russia"]
[Date "2022.09.26"]
[Round "3.3"]
[White "Kolomensky, Vladimir"]
[Black "Kremenietsky, Anatoly M."]
[Result "1/2-1/2"]
[TimeControl "90min/40moves+30min/end+30sec increment per move starting from move 1"]
[WhiteTitle "FM"]
[BlackTitle "IM"]
[WhiteFideId "4123565"]
[BlackFideId "4103467"]
[WhiteElo "2055"]
[BlackElo "2241"]

1. e4 {[%clk 01:30:58]} {[%emt 00:00:01]} c5 {[%clk 01:25:14]} {[%emt
00:05:46]} 2. Nf3 {[%clk 01:31:14]} {[%emt 00:00:14]} Nf6 {[%clk 01:24:09]}
{[%emt 00:01:34]} 3. Nc3 {[%clk 01:31:19]} {[%emt 00:00:25]} Nc6 {[%clk
01:21:24]} {[%emt 00:03:15]} 4. d4 {[%clk 01:31:32]} {[%emt 00:00:18]} cxd4
{[%clk 01:18:01]} {[%emt 00:03:52]} 5. Nxd4 {[%clk 01:31:55]} {[%emt 00:00:07]}
d6 {[%clk 01:18:13]} {[%emt 00:00:18]} 6. Be2 {[%clk 01:31:12]} {[%emt
00:01:13]} g6 {[%clk 01:13:15]} {[%emt 00:05:28]} 7. O-O {[%clk 01:31:25]}
{[%emt 00:00:17]} Bg7 {[%clk 01:13:37]} {[%emt 00:00:08]} 8. Nb3 {[%clk
01:31:39]} {[%emt 00:00:16]} O-O {[%clk 01:13:19]} {[%emt 00:00:24]} 9. Bg5
{[%clk 01:32:09]} a5 {[%clk 01:10:24]} {[%emt 00:03:49]} 10. a4 {[%clk
01:31:37]} {[%emt 00:01:02]} Be6 {[%clk 01:07:12]} {[%emt 00:03:41]} 11. Kh1
{[%clk 01:28:52]} {[%emt 00:03:16]} Nd7 {[%clk 01:01:52]} {[%emt 00:05:49]} 12.
Re1 {[%clk 01:04:19]} {[%emt 00:25:02]} Rc8 {[%clk 00:42:35]} {[%emt 00:19:47]}
13. Be3 {[%clk 00:46:23]} {[%emt 00:18:27]} Nb4 {[%clk 00:27:38]} {[%emt
00:15:26]} 14. Nd4 {[%clk 00:46:08]} {[%emt 00:00:46]} Bc4 {[%clk 00:27:54]}
{[%emt 00:00:14]} 15. Bxc4 {[%clk 00:41:04]} {[%emt 00:05:34]} Rxc4 {[%clk
00:28:22]} {[%emt 00:00:03]} 16. Ndb5 {[%clk 00:41:25]} {[%emt 00:00:09]} Rc6
{[%clk 00:27:19]} {[%emt 00:01:33]} 17. Re2 {[%clk 00:34:45]} {[%emt 00:07:10]}
Nf6 {[%clk 00:23:55]} {[%emt 00:03:52]} 18. Rd2 {[%clk 00:34:01]} {[%emt
00:01:15]} Qb8 {[%clk 00:18:49]} {[%emt 00:05:37]} 19. f3 {[%clk 00:33:12]}
{[%emt 00:01:18]} b6 {[%clk 00:17:55]} {[%emt 00:01:24]} 20. Nd5 {[%clk
00:31:48]} {[%emt 00:01:54]} Nbxd5 {[%clk 00:13:35]} {[%emt 00:04:50]} 21. exd5
{[%clk 00:32:15]} {[%emt 00:00:03]} Rcc8 {[%clk 00:13:45]} {[%emt 00:00:19]} 22.
Qe2 {[%clk 00:28:52]} {[%emt 00:03:53]} Nd7 {[%clk 00:12:43]} {[%emt 00:01:32]}
23. c4 {[%clk 00:23:47]} {[%emt 00:05:35]} Rfe8 {[%clk 00:11:25]} {[%emt
00:01:48]} 24. Rad1 {[%clk 00:23:04]} {[%emt 00:01:13]} Nc5 {[%clk 00:09:41]}
{[%emt 00:02:14]} 25. Bxc5 {[%clk 00:23:14]} {[%emt 00:00:20]} bxc5 {[%clk
00:09:47]} {[%emt 00:00:23]} 26. Re1 {[%clk 00:08:02]} {[%emt 00:15:42]} Bf6
{[%clk 00:09:04]} {[%emt 00:01:13]} 27. Qd1 {[%clk 00:08:10]} {[%emt 00:00:23]}
Red8 {[%clk 00:09:09]} {[%emt 00:00:24]} 28. Rde2 {[%clk 00:08:15]} {[%emt
00:00:25]} Rd7 {[%clk 00:08:42]} {[%emt 00:00:58]} 29. f4 {[%clk 00:08:26]}
{[%emt 00:00:19]} Qb7 {[%clk 00:08:39]} {[%emt 00:00:33]} 30. b3 {[%clk
00:07:55]} {[%emt 00:01:01]} Bh4 {[%clk 00:08:50]} {[%emt 00:00:19]} 31. Rf1
{[%clk 00:05:53]} {[%emt 00:02:32]} Bf6 {[%clk 00:09:07]} {[%emt 00:00:13]} 32.
Qd2 {[%clk 00:06:05]} {[%emt 00:00:18]} Ra8 {[%clk 00:09:23]} {[%emt 00:00:14]}
33. Qd3 {[%clk 00:06:15]} {[%emt 00:00:20]} Kh8 {[%clk 00:08:04]} {[%emt
00:01:49]} 34. Qf3 {[%clk 00:04:33]} {[%emt 00:02:13]} Rg8 {[%clk 00:08:20]}
{[%emt 00:00:14]} 35. Re3 {[%clk 00:02:04]} {[%emt 00:02:59]} Qb8 {[%clk
00:08:09]} {[%emt 00:00:40]} 36. g3 {[%clk 00:02:06]} {[%emt 00:00:28]} Qb7
{[%clk 00:08:02]} {[%emt 00:00:38]} 37. h4 {[%clk 00:02:28]} {[%emt 00:00:08]}
Qb8 {[%clk 00:08:12]} {[%emt 00:00:20]} 38. Kg2 {[%clk 00:02:39]} {[%emt
00:00:19]} Qd8 {[%clk 00:08:30]} {[%emt 00:00:10]} 39. Rh1 {[%clk 00:02:53]}
{[%emt 00:00:18]} h5 {[%clk 00:05:16]} {[%emt 00:03:44]} 40. Rhe1 {[%clk
00:32:20]} {[%emt 00:01:04]} Rg7 {[%clk 00:33:17]} {[%emt 00:02:28]} 41. Kh2
{[%clk 00:19:22]} {[%emt 00:13:27]} Qb8 {[%clk 00:25:37]} {[%emt 00:08:11]} 42.
Kg2 {[%clk 00:13:02]} {[%emt 00:06:50]} Rd8 {[%clk 00:23:54]} {[%emt 00:02:12]}
43. Rh1 {[%clk 00:12:54]} {[%emt 00:00:39]} Rdg8 {[%clk 00:20:53]} {[%emt
00:03:31]} 44. Rhe1 {[%clk 00:13:08]} {[%emt 00:00:16]} 1/2-1/2

[Event "Senior Men Russian Championship 2022_1L"]
[Site "Olginka, Russia"]
[Date "2022.09.26"]
[Round "3.4"]
[White "Pak, Kil En"]
[Black "Kovalev, Evgeny"]
[Result "1/2-1/2"]
[TimeControl "90min/40moves+30min/end+30sec increment per move starting from move 1"]
[WhiteFideId "4131959"]
[WhiteElo "2207"]
[BlackElo "2048"]

1. c4 {[%clk 01:30:44]} {[%emt 00:00:14]} e5 {[%clk 01:30:39]} {[%emt
00:00:21]} 2. Nc3 {[%clk 01:30:34]} {[%emt 00:00:41]} Nf6 {[%clk 01:30:49]}
{[%emt 00:00:20]} 3. g3 {[%clk 01:30:25]} {[%emt 00:00:38]} c6 {[%clk
01:30:42]} {[%emt 00:00:37]} 4. d4 {[%clk 01:29:29]} {[%emt 00:01:26]} e4
{[%clk 01:30:07]} {[%emt 00:01:05]} 5. d5 {[%clk 01:29:03]} {[%emt 00:00:56]}
Bb4 {[%clk 01:29:31]} {[%emt 00:01:06]} 6. Bg2 {[%clk 01:29:22]} {[%emt
00:00:10]} Bxc3+ {[%clk 01:28:41]} {[%emt 00:01:21]} 7. bxc3 {[%clk 01:29:46]}
{[%emt 00:00:06]} d6 {[%clk 01:28:07]} {[%emt 00:01:05]} 8. Nh3 {[%clk
01:29:48]} {[%emt 00:00:27]} O-O {[%clk 01:26:45]} {[%emt 00:01:52]} 9. O-O
{[%clk 01:29:30]} {[%emt 00:00:47]} c5 {[%clk 01:26:11]} {[%emt 00:01:05]} 10.
f4 {[%clk 01:24:09]} {[%emt 00:05:50]} exf3 {[%clk 01:23:51]} {[%emt 00:02:51]}
11. exf3 {[%clk 01:24:18]} {[%emt 00:00:20]} Nbd7 {[%clk 01:20:40]} {[%emt
00:03:41]} 12. f4 {[%clk 01:23:43]} {[%emt 00:01:05]} Re8 {[%clk 01:20:22]}
{[%emt 00:00:48]} 13. Qd3 {[%clk 01:23:40]} {[%emt 00:00:33]} Nf8 {[%clk
01:19:51]} {[%emt 00:01:02]} 14. Nf2 {[%clk 01:22:44]} {[%emt 00:01:26]} Ng6
{[%clk 01:19:37]} {[%emt 00:00:44]} 15. Bd2 {[%clk 01:22:54]} {[%emt 00:00:21]}
Bd7 {[%clk 01:19:27]} {[%emt 00:00:39]} 16. Rfe1 {[%clk 01:21:57]} {[%emt
00:01:27]} Qa5 {[%clk 01:18:38]} {[%emt 00:01:19]} 17. Ne4 {[%clk 01:20:59]}
{[%emt 00:01:29]} Nxe4 {[%clk 01:17:52]} {[%emt 00:01:16]} 18. Bxe4 {[%clk
01:21:20]} {[%emt 00:00:08]} 1/2-1/2

[Event "Senior Men Russian Championship 2022_1L"]
[Site "Olginka, Russia"]
[Date "2022.09.26"]
[Round "3.5"]
[White "Piankov, Evgenij"]
[Black "Bebchuk, Boris"]
[Result "1/2-1/2"]
[TimeControl "90min/40moves+30min/end+30sec increment per move starting from move 1"]
[WhiteTitle "IM"]
[WhiteFideId "14100525"]
[WhiteElo "2165"]
[BlackElo "2089"]

1. d4 {[%clk 01:30:55]} {[%emt 00:00:04]} Nf6 {[%clk 01:29:09]} {[%emt
00:01:51]} 2. Nf3 {[%clk 01:30:49]} {[%emt 00:00:36]} e6 {[%clk 01:29:29]}
{[%emt 00:00:11]} 3. g3 {[%clk 01:30:53]} {[%emt 00:00:26]} b6 {[%clk
01:29:38]} {[%emt 00:00:20]} 4. Bg2 {[%clk 01:31:11]} {[%emt 00:00:11]} Bb7
{[%clk 01:30:05]} {[%emt 00:00:04]} 5. O-O {[%clk 01:31:27]} {[%emt 00:00:13]}
Be7 {[%clk 01:30:17]} {[%emt 00:00:18]} 6. c4 {[%clk 01:31:39]} {[%emt
00:00:19]} O-O {[%clk 01:30:15]} {[%emt 00:00:32]} 7. b3 {[%clk 01:29:01]}
{[%emt 00:03:08]} d5 {[%clk 01:28:46]} {[%emt 00:01:58]} 8. cxd5 {[%clk
01:28:50]} {[%emt 00:00:42]} exd5 {[%clk 01:28:47]} {[%emt 00:00:29]} 9. Bb2
{[%clk 01:29:03]} {[%emt 00:00:16]} Re8 {[%clk 01:25:13]} {[%emt 00:04:04]} 10.
Nc3 {[%clk 01:28:33]} {[%emt 00:01:00]} Bd6 {[%clk 01:24:53]} {[%emt 00:00:50]}
11. Nb5 {[%clk 01:17:24]} {[%emt 00:11:39]} Bf8 {[%clk 01:24:49]} {[%emt
00:00:33]} 12. Re1 {[%clk 01:16:52]} {[%emt 00:01:03]} c6 {[%clk 01:23:28]}
{[%emt 00:01:51]} 13. Nc3 {[%clk 01:17:00]} {[%emt 00:00:22]} Nbd7 {[%clk
01:23:33]} {[%emt 00:00:26]} 14. e3 {[%clk 01:14:55]} {[%emt 00:02:34]} Bd6
{[%clk 01:23:45]} {[%emt 00:00:18]} 15. Rc1 {[%clk 01:10:24]} {[%emt 00:05:00]}
Qe7 {[%clk 01:21:47]} {[%emt 00:02:28]} 16. Nd2 {[%clk 00:56:06]} {[%emt
00:14:48]} Rad8 {[%clk 01:20:11]} {[%emt 00:02:06]} 17. e4 {[%clk 00:48:12]}
{[%emt 00:08:24]} dxe4 {[%clk 01:19:26]} {[%emt 00:01:15]} 18. Ncxe4 {[%clk
00:48:18]} {[%emt 00:00:24]} Nd5 {[%clk 01:13:15]} {[%emt 00:06:40]} 19. Nxd6
{[%clk 00:47:41]} {[%emt 00:01:08]} Qxd6 {[%clk 01:13:34]} {[%emt 00:00:11]} 20.
Nc4 {[%clk 00:45:53]} {[%emt 00:02:18]} Qf6 {[%clk 01:09:41]} {[%emt 00:04:23]}
21. Rxe8+ {[%clk 00:42:25]} {[%emt 00:03:59]} Rxe8 {[%clk 01:10:09]} {[%emt
00:00:02]} 22. Ne5 {[%clk 00:42:40]} {[%emt 00:00:14]} Qd6 {[%clk 01:09:34]}
{[%emt 00:01:05]} 23. Nc4 {[%clk 00:35:13]} {[%emt 00:07:58]} Qe6 {[%clk
01:08:33]} {[%emt 00:01:30]} 24. Ba3 {[%clk 00:35:02]} {[%emt 00:00:43]} Ba8
{[%clk 01:06:18]} {[%emt 00:02:43]} 25. Nd6 {[%clk 00:34:09]} {[%emt 00:01:24]}
Rd8 {[%clk 01:06:29]} {[%emt 00:00:17]} 26. Qd2 {[%clk 00:32:30]} {[%emt
00:02:11]} N7f6 {[%clk 01:02:57]} {[%emt 00:04:02]} 27. Re1 {[%clk 00:28:56]}
{[%emt 00:04:04]} Qd7 {[%clk 01:02:45]} {[%emt 00:00:41]} 28. Nc4 {[%clk
00:24:17]} {[%emt 00:05:10]} h6 {[%clk 01:00:58]} {[%emt 00:02:17]} 29. Ne5
{[%clk 00:22:15]} {[%emt 00:02:32]} Qf5 {[%clk 01:01:02]} {[%emt 00:00:24]} 30.
Nc4 {[%clk 00:21:00]} {[%emt 00:01:47]} Qd7 {[%clk 00:53:42]} {[%emt 00:07:49]}
31. Ne5 {[%clk 00:18:23]} {[%emt 00:03:08]} Qf5 {[%clk 00:53:47]} {[%emt
00:00:24]} 32. Nc4 {[%clk 00:18:32]} {[%emt 00:00:22]} Qd7 {[%clk 00:42:36]}
{[%emt 00:11:40]} 1/2-1/2

[Event "Senior Men Russian Championship 2022_1L"]
[Site "Olginka, Russia"]
[Date "2022.09.26"]
[Round "3.6"]
[White "Savinkov, Viktor"]
[Black "Birjukov, Sergey"]
[Result "0-1"]
[TimeControl "90min/40moves+30min/end+30sec increment per move starting from move 1"]
[BlackTitle "FM"]
[WhiteFideId "4138015"]
[WhiteElo "2068"]
[BlackElo "1867"]

1. c4 {[%clk 01:30:56]} {[%emt 00:00:05]} e6 {[%clk 01:30:39]} {[%emt
00:00:24]} 2. g3 {[%clk 01:31:08]} {[%emt 00:00:19]} d5 {[%clk 01:30:48]}
{[%emt 00:00:20]} 3. Bg2 {[%clk 01:31:25]} {[%emt 00:00:14]} Nf6 {[%clk
01:30:54]} {[%emt 00:00:24]} 4. Nf3 {[%clk 01:31:38]} {[%emt 00:00:18]} Be7
{[%clk 01:30:46]} {[%emt 00:00:37]} 5. O-O {[%clk 01:31:49]} {[%emt 00:00:19]}
O-O {[%clk 01:30:59]} {[%emt 00:00:17]} 6. b3 {[%clk 01:29:31]} {[%emt
00:02:48]} c6 {[%clk 01:29:48]} {[%emt 00:01:40]} 7. Bb2 {[%clk 01:29:42]}
{[%emt 00:00:20]} Nbd7 {[%clk 01:29:59]} {[%emt 00:00:18]} 8. Qc2 {[%clk
01:28:46]} {[%emt 00:01:26]} a5 {[%clk 01:20:48]} {[%emt 00:09:41]} 9. Nc3
{[%clk 01:26:23]} {[%emt 00:02:54]} Re8 {[%clk 01:14:02]} {[%emt 00:07:15]} 10.
e4 {[%clk 01:20:16]} {[%emt 00:06:38]} dxe4 {[%clk 01:06:58]} {[%emt 00:07:34]}
11. Nxe4 {[%clk 01:13:17]} {[%emt 00:07:29]} Nxe4 {[%clk 01:07:06]} {[%emt
00:00:22]} 12. Qxe4 {[%clk 01:13:41]} {[%emt 00:00:06]} Nc5 {[%clk 01:07:11]}
{[%emt 00:00:21]} 13. Qe3 {[%clk 01:11:27]} {[%emt 00:02:48]} Nd3 {[%clk
01:04:54]} {[%emt 00:02:46]} 14. Bd4 {[%clk 01:11:23]} {[%emt 00:00:35]} Nb4
{[%clk 01:03:44]} {[%emt 00:01:39]} 15. Qc3 {[%clk 01:08:50]} {[%emt 00:03:03]}
f6 {[%clk 01:01:29]} {[%emt 00:02:44]} 16. a3 {[%clk 01:08:33]} {[%emt
00:00:49]} e5 {[%clk 00:55:43]} {[%emt 00:06:15]} 17. Bxe5 {[%clk 00:50:33]}
{[%emt 00:18:31]} fxe5 {[%clk 00:54:12]} {[%emt 00:02:00]} 18. axb4 {[%clk
00:50:59]} {[%emt 00:00:05]} Bxb4 {[%clk 00:51:37]} {[%emt 00:03:03]} 19. Qb2
{[%clk 00:50:15]} {[%emt 00:01:15]} e4 {[%clk 00:50:36]} {[%emt 00:01:29]} 20.
Nd4 {[%clk 00:50:11]} {[%emt 00:00:36]} Bg4 {[%clk 00:39:52]} {[%emt 00:11:13]}
21. h3 {[%clk 00:37:47]} {[%emt 00:12:55]} Bc5 {[%clk 00:36:01]} {[%emt
00:04:21]} 22. Nc2 {[%clk 00:38:11]} {[%emt 00:00:07]} Be2 {[%clk 00:35:32]}
{[%emt 00:00:55]} 23. Rfe1 {[%clk 00:38:27]} {[%emt 00:00:18]} Qxd2 {[%clk
00:33:38]} {[%emt 00:02:22]} 24. Ra2 {[%clk 00:36:23]} {[%emt 00:02:34]} Bxf2+
{[%clk 00:31:18]} {[%emt 00:02:52]} 25. Kh2 {[%clk 00:36:10]} {[%emt 00:00:43]}
Bxe1 {[%clk 00:23:41]} {[%emt 00:08:06]} 26. Nxe1 {[%clk 00:36:31]} {[%emt
00:00:10]} Qxe1 {[%clk 00:23:52]} {[%emt 00:00:19]} 27. Qxe2 {[%clk 00:36:53]}
{[%emt 00:00:07]} Qxe2 {[%clk 00:24:11]} {[%emt 00:00:10]} 28. Rxe2 {[%clk
00:37:17]} {[%emt 00:00:06]} e3 {[%clk 00:24:32]} {[%emt 00:00:08]} 0-1